Cogmind - Beta 13 @@@ ROGUE MODE // 2024.03.02 @ 16:51:16 Player: OctarineSorcerer Result: Self-destructed Performance ------------- Evolutions (1) 500 Regions Visited (3) 600 Robots Destroyed (20) 100 Value Destroyed (594) 594 Prototype IDs (1) 20 Alien Tech Used (0) 0 Bonus (0) 0 TOTAL SCORE: 1814 Bonus ------- None Cogmind --------- Core Integrity 62/400 Matter 280/300 Energy 100/100 System Corruption 3% Temperature Cool (0) Movement Core (350) Ox6 Location -9/Storage Parts ------- > --- POWER (1) -------- (None) > --- PROPULSION (4) --- (None) > --- UTILITY (2) ------ Large Storage Unit > --- WEAPON (2) ------- (None) > --- INVENTORY (15) --- Weight Redist. System Gravity Neutralizer Drone Bay (2/2) Drone Bay (2/2) Improved Medium Laser Improved Medium Laser Light Assault Rifle Peak State ------------ > --- POWER ------------ Improved Ion Engine > --- PROPULSION ------- Aluminum Leg Hover Unit Airjet Airjet > --- UTILITY ---------- Large Storage Unit Utility Shielding > --- WEAPON ----------- Improved Assault Rifle Improved Assault Rifle > --- INVENTORY -------- Light Treads Aluminum Leg Aluminum Leg Aluminum Leg Weight Redist. System Gravity Neutralizer Drone Bay Drone Bay Shock Rifle Shock Rifle Improved Medium Laser Improved Medium Laser Light Assault Rifle Improved Assault Rifle Improved Assault Rifle [Rating: 22] Favorites ----------- Power Improved Ion Engine Engine Improved Ion Engine Power Core Light Nuclear Core Propulsion Aluminum Leg Treads Light Treads Leg Aluminum Leg Hover Unit Airjet Utility Large Storage Unit Storage Large Storage Unit Protection Utility Shielding Weapon Improved Assault Rifle Energy Gun Shock Rifle Ballistic Gun Improved Assault Rifle Build | -11 -10 -9 -9 ------- Run | Yrd Mat Mat Sto Slots Evolved 2 | . . 2 . Power . | . . . . Propulsion 2 | . . 2 . Utility . | . . . . Weapon . | . . . . Parts Attached 29 | 6 4 2 17 Power 4 | 1 1 . 2 Engine 3 | 1 . . 2 Core 1 | . 1 . . Reactor . | . . . . Propulsion 14 | 2 . 2 10 Treads 3 | . . 2 1 Leg 8 | 2 . . 6 Wheel . | . . . . Hover 3 | . . . 3 Flight . | . . . . Utility 3 | 1 2 . . Device . | . . . . Storage 2 | 1 1 . . Processor . | . . . . Hackware . | . . . . Protection 1 | . 1 . . Artifact . | . . . . Weapon 8 | 2 1 . 5 Energy Gun 2 | . . . 2 Energy Cannon . | . . . . Ballistic Gun 6 | 2 1 . 3 Ballistic Cannon . | . . . . Launcher . | . . . . Special Weapon . | . . . . Impact Weapon . | . . . . Slashing Weapon . | . . . . Piercing Weapon . | . . . . Special Melee Weapon . | . . . . Unidentified Prototypes 1 | . 1 . . Corrupted Parts 1 | . . . 1 System Corruption 3 | . . . 3 Parts Lost 20 | . 1 2 17 Power 2 | . . 1 1 Propulsion 10 | . . . 10 Utility . | . . . . Weapon 8 | . 1 1 6 Highest Loss Streak 14 | . 1 2 14 To Critical Strikes . | . . . . Average Slot Usage (%) 87 | . 87 94 87 Engine 9 | . 10 . 10 Core 1 | . 3 9 . Treads 6 | . . 20 5 Leg 14 | . 28 22 11 Hover 13 | . . . 18 Storage 11 | . 14 11 11 Protection 9 | . 2 11 10 Ballistic Gun 21 | . 28 19 19 Naked Turns . | . . . . Heaviest Build 34 | 11 31 31 34 Greatest Support 30 | 20 20 20 30 Greatest Overweight (x) 7 | 1 1 1 7 Average Overweight (x) 1 | . . 1 1 Largest Inventory Capacity 15 | 8 15 15 15 Average Capacity 13 | 7 8 15 15 Most Carried 15 | 3 9 11 15 Average Carried 10 | 1 6 8 12 Final Capacity 15 | 8 15 15 15 Final Carried 11 | 3 9 11 7 Class Distribution -------------------- 100% | Mutant Dominant Class ---------------- Mutant | -10/Materials Mutant | -9/Materials Mutant | -9/Storage Resources | -11 -10 -9 -9 ----------- Run | Yrd Mat Mat Sto Matter Collected 689 | 192 113 . 384 Remotely . | . . . . Salvage Created 881 | . 191 . 690 Parts 63 | . 11 . 52 Haulers Intercepted 4 | . 2 . 2 Recyclers Shooed 1 | . . . 1 Parts Field Recycled . | . . . . Retrieved Matter . | . . . . Parts Self-Destructed . | . . . . Prevented . | . . . . Kills | -11 -10 -9 -9 ------- Run | Yrd Mat Mat Sto Combat Hostiles Destroyed 14 | . 2 . 12 Guns 14 | . 2 . 12 Classes Destroyed 5 | . 2 . 3 Builder 1 | . . . 1 Hauler 4 | . 2 . 2 Watcher 1 | . . . 1 Grunt 8 | . 2 . 6 Sentry 6 | . . . 6 Best Kill Streak 3 | . 2 . 3 Combat Bots Only 3 | . 2 . 3 Max Kills in Single Turn 2 | . 2 . 1 Gunslinging 1 | . 1 . . Exploded . | . . . . Melee . | . . . . Uniques/NPCs Destroyed . | . . . . Combat | -11 -10 -9 -9 -------- Run | Yrd Mat Mat Sto Hostile Shots Fired 247 | . 12 58 177 Missed 78 | . 6 17 55 Damage Taken 2229 | . 101 439 1689 Core 380 | . 42 47 291 Absorbed by Shields . | . . . . Redirected to Shielding 28 | . . . 28 Core Remaining (%) 91 | 100 83 . . Volleys Fired 57 | . 9 1 47 Largest 2 | . 2 1 2 Hottest 100 | . 43 23 100 Shots Fired 107 | . 18 1 88 Gun 107 | . 18 1 88 Cannon . | . . . . Launcher . | . . . . Special . | . . . . Kinetic 99 | . 18 1 80 Thermal . | . . . . Explosive . | . . . . Electromagnetic 8 | . . . 8 Robot Hit Streak 19 | . 9 8 19 Robot Miss Streak 1 | . 1 . 1 Penetration Max . | . . . . Secondary Targets 3 | . 1 . 2 Max Gunslinging Chain 1 | . 1 . 1 Shots Hit Robots 89 | . 16 1 72 Core Hits 35 | . 6 . 29 Critical Kills . | . . . . Critical Parts Destroyed 1 | . . . 1 Critical Strikes 1 | . . . 1 Destroy 1 | . . . 1 Melee Attacks . | . . . . Impact . | . . . . Slashing . | . . . . Piercing . | . . . . Sneak Attacks . | . . . . Combat Hostiles . | . . . . Follow-up Attacks . | . . . . Damage Inflicted 1377 | . 197 13 1167 Guns 1293 | . 197 13 1083 Cannons . | . . . . Explosions 84 | . . . 84 Melee . | . . . . Ramming . | . . . . Kinetic 1166 | . 197 13 956 Thermal 84 | . . . 84 Explosive . | . . . . Electromagnetic 127 | . . . 127 Impact . | . . . . Slashing . | . . . . Piercing . | . . . . Highest Corruption 3 | . . . 3 Average Corruption 3 | . . . 3 Corruption Purged . | . . . . Corruption Blocked . | . . . . Effects 1 | . . . 1 Parts Rejected 1 | . . . 1 Overload Shots . | . . . . Overflow Damage . | . . . . Projectiles . | . . . . Explosions . | . . . . Melee . | . . . . Knockbacks . | . . . . Impact . | . . . . Kinetic . | . . . . Secondary . | . . . . Self-Inflicted Damage 15 | . . . 15 Shots 1 | . . . 1 Rammed . | . . . . Targets Rammed . | . . . . Kicked . | . . . . Crushed . | . . . . Highest Temperature 223 | . 3 8 223 Average Temperature 67 | . 3 8 75 Received Heat Transfer 921 | . 48 108 765 Siege Activations . | . . . . Robots Corrupted . | . . . . Combat Hostiles . | . . . . Parts Fried . | . . . . Impact Corruptions . | . . . . Robots Melted . | . . . . Combat Hostiles . | . . . . Parts Melted . | . . . . Heat Transferred 150 | . . . 150 Parts Sabotaged . | . . . . Parts Stolen . | . . . . Parts Stripped . | . . . . Power Chain Reactions 1 | . . . 1 Alert | -11 -10 -9 -9 ------- Run | Yrd Mat Mat Sto Peak Influence 286 | . 84 50 286 Initial 35 | . . 35 12 Average 107 | . 30 39 143 Maximum Alert Level 1 | . . . 1 Low Security (%) 86 | 100 100 100 81 Level 1 13 | . . . 18 Level 2 . | . . . . Level 3 . | . . . . Level 4 . | . . . . Level 5 . | . . . . High Security . | . . . . Max Security . | . . . . Squads Dispatched 5 | . 1 . 4 Investigation 1 | . . . 1 Extermination . | . . . . Reinforcement 3 | . 1 . 2 Assault . | . . . . Garrison 1 | . . . 1 Intercept . | . . . . Searches Triggered . | . . . . Construction Impeded . | . . . . Haulers Reinforced . | . . . . Active Scanning Responses . | . . . . Cargo Convoy Interrupts . | . . . . Stealth | -11 -10 -9 -9 --------- Run | Yrd Mat Mat Sto Distress Signals 1 | . . . 1 Communications Jammed . | . . . . Distress Signals . | . . . . Times Spotted 28 | . 4 4 20 Peak Tracking Total 8 | . 3 4 8 Tactical Retreats . | . . . . Traps | -11 -10 -9 -9 ------- Run | Yrd Mat Mat Sto Traps Triggered 1 | . 1 . . Indirectly . | . . . . Trap Hack Attempts . | . . . . Triggered . | . . . . Disarmed . | . . . . Reprogrammed . | . . . . Reused . | . . . . Traps Extracted . | . . . . Installed . | . . . . Triggered . | . . . . Machines | -11 -10 -9 -9 ---------- Run | Yrd Mat Mat Sto Machines Disabled 1 | . . . 1 Max in Single Turn 1 | . . . 1 Machines Repaired . | . . . . Machines Dismantled . | . . . . Machines Sabotaged . | . . . . Overloaded Fab Kills . | . . . . Hacking | -11 -10 -9 -9 --------- Run | Yrd Mat Mat Sto Machines Accessed 10 | . 2 . 8 Terminals 8 | . 2 . 6 Fabricators . | . . . . Repair Stations 1 | . . . 1 Recycling Units 1 | . . . 1 Scanalyzers . | . . . . Garrison Access . | . . . . Total Hacks 28 | . 5 . 23 Successful 13 | . . . 13 Failed 15 | . 5 . 10 Catastrophic 4 | . 2 . 2 Database Lockouts . | . . . . Manual 5 | . 3 . 2 Terminals 20 | . 5 . 15 Fabricators . | . . . . Repair Stations 3 | . . . 3 Recycling Units 5 | . . . 5 Scanalyzers . | . . . . Garrison Access . | . . . . Terminal Hacks 7 | . . . 7 Record 2 | . . . 2 Open Door 4 | . . . 4 Zone Layout 1 | . . . 1 Fabricator Hacks . | . . . . Repair Station Hacks 2 | . . . 2 Scan Component 2 | . . . 2 Recycling Unit Hacks 4 | . . . 4 Recycle Component 2 | . . . 2 Process 1 | . . . 1 Report Inventory 1 | . . . 1 Scanalyzer . | . . . . Garrison Access Hacks . | . . . . Unauthorized Hacks . | . . . . Terminals . | . . . . Fabricators . | . . . . Repair Stations . | . . . . Recycling Units . | . . . . Scanalyzers . | . . . . Garrison Access . | . . . . Data Cores Recovered . | . . . . Used . | . . . . Hacking Detections 8 | . 2 . 6 Full Trace Events 1 | . . . 1 Feedback Events . | . . . . Feedback Blocked . | . . . . Robot Schematics Acquired . | . . . . Robots Built . | . . . . Authchips . | . . . . Time . | . . . . Total Robot Build Rating . | . . . . Part Schematics Acquired . | . . . . Parts Built . | . . . . Authchips . | . . . . Time . | . . . . Total Part Build Rating . | . . . . Parts Repaired . | . . . . Time . | . . . . Parts Recycled 2 | . . . 2 Recycled Matter 30 | . . . 30 Retrieved Matter . | . . . . Retrieved Components . | . . . . Parts Scanalyzed . | . . . . Part Schematics Acquired . | . . . . Parts Damaged . | . . . . Bothacking | -11 -10 -9 -9 ------------ Run | Yrd Mat Mat Sto Used RIF Installer . | . . . . Robots Hacked . | . . . . Non-combat . | . . . . Combat . | . . . . Robot Hacks Applied . | . . . . Relay Couplers Released . | . . . . Fabnet Peak Effective % . | . . . . Robots Rewired . | . . . . Allies Hacked . | . . . . Hacks Repelled . | . . . . Allies | -11 -10 -9 -9 -------- Run | Yrd Mat Mat Sto Total Allies . | . . . . Largest Group . | . . . . Highest-Rated Group . | . . . . Highest-Rated Ally . | . . . . Total Orders . | . . . . Ally Attacks . | . . . . Total Damage . | . . . . Kills . | . . . . Allies Corrupted . | . . . . Allies Melted . | . . . . Intel | -11 -10 -9 -9 ------- Run | Yrd Mat Mat Sto Robot Analysis Total . | . . . . Derelict Logs Recovered . | . . . . Drone Launches . | . . . . Drone Recoveries . | . . . . Exploration | -11 -10 -9 -9 ------------- Run | Yrd Mat Mat Sto Turns Passed 1014 | 67 161 81 705 Spaces Moved 468 | 52 96 39 281 Core 16 | 13 . . 3 Treads 6 | . . . 6 Legs 265 | 39 96 39 91 Wheels . | . . . . Hover 181 | . . . 181 Flight . | . . . . Fastest Speed 50 | 50 120 190 112 Average Speed 167 | 107 128 190 189 Slowest Speed 400 | 190 190 190 400 Overloaded Moves . | . . . . Propulsion Burnouts . | . . . . Robots Hopped . | . . . . Cave-ins Triggered . | . . . . Exploration Rate (%) 19 | 4 24 7 44 Regions Visited 3 Branch Regions 1 Pre-discovered Areas . | . . . . Known Exits Taken . | . . . . Unknown Exits Taken 3 | 1 1 1 . Scrap Searched . | . . . . Spaces Dug . | . . . . Terrain Destroyed 3 | . . . 3 Melee . | . . . . Projectile . | . . . . AOE 3 | . . . 3 Terrain Rammed . | . . . . Walls Destroyed . | . . . . Machines Disabled . | . . . . Actions | -11 -10 -9 -9 --------- Run | Yrd Mat Mat Sto Total 583 | 60 116 45 362 Wait 11 | . . . 11 Move 465 | 51 95 38 281 Hop . | . . . . Pick Up 18 | 3 6 4 5 Fast Attach 12 | 6 1 . 5 Attach 12 | . 1 2 9 Detach 1 | . . . 1 Swap 6 | . 3 . 3 Drop 1 | . 1 . . Fire 57 | . 9 1 47 Melee . | . . . . Ram . | . . . . Kick . | . . . . Crush . | . . . . Escape Stasis . | . . . . Rewire . | . . . . Trap . | . . . . Miscellaneous . | . . . . Route ------- -11/Scrapyard -10/Materials -9/Materials -9/Storage History --------- Turn | Location | Event 11 | -11/Scrapyard | Discovered new exit (range 15) 68 | -11/Scrapyard | Entered Materials 195 | -10/Materials | Discovered new exit (range 16) 229 | -10/Materials | Entered another Materials area 229 | -9/Materials | Evolved 2 slots: Propulsion x2 266 | -9/Materials | Discovered new exit (range 15) 308 | -9/Materials | Build established: Mutant 310 | -9/Materials | Entered Storage 522 | -9/Storage | Garrison activated, responded to threat 955 | -9/Storage | Core integrity fell below 50% 1001 | -9/Storage | Core integrity fell below 20% 1015 | -9/Storage | Self-destructed Last Messages --------------- 00949_ G-34 Mercenary destroyed. 00951_ K-01 Serf collects debris. 00951_ Imp. Ion Engine destroyed. 00952_ R-06 Scavenger collects Corrupted Sml. Laser. 00952_ R-06 Scavenger collects Lgt. Treads. 00953_ Acquired 45 matter. 00954_ Critical hit (Burn: +37). 00955_ R-06 Scavenger collects Aluminum Leg. 00959_ R-06 Scavenger collects Heat Sink. 00962_ Imp. Assault Rifle destroyed. 00969_ Aluminum Leg destroyed. 00973_ Imp. Assault Rifle destroyed. 00991_ Lgt. Treads destroyed. 00994_ Component Storage disabled. 00997_ Integrated Corrupted Aluminum Leg (+3). 00997_ Complication: Utility Shielding rejected. 01005_ System corrupted: Aluminum Leg rejected. 01006_ Acquired Aluminum Leg. 01014_ Aluminum Leg destroyed. Map ----- +----------------------------------------------------+ | ?????????????????????????????????????? | | ?????????????????????????????????????? | | ?????????????????????????????????????? | | ?????????????????????????????????????? | | ?????????????????????????????????????? | | ?????????????????????????????????????? | | ?????????????????????????????????????? | | #######??????????????????????????????? | | ?????????????????????????????? | | ?????????????????????????????? | | ?????????????????????????????? | | #????????????????????????????????????? | | #????????????????????????????????????? | | #????????????????????????????????????? | | #????????#???????????????????????????? | | #??????? #???????????????????????????? | | #??????? #???????????????????????????? | | #####?? #???????????????????????????? | | + #? #???????????????????????????? | | ### # ! #???????????????????????????? | | #?# #] #???????????????????????????? | | #?# / [#???????????????????????????? | | ??# # #?????####+######???????????? | | ?## ###+######## #???????????? | | ## ## # [![ # Y ##??????????? | | +%""" + """ """ @#??????????? | | ## ## #% # """ """ ##??????????? | | ?##+###+# !# """ """g#???????????? | | ?# " %%= # """ """ #???????????? | | ?# #![! # "" """ #???????????? | | ?# ##"T"# # Y! #???????????? | | ?# ??##########" "####???????????? | | ?# ????????????#"R"#??????????????? | | ?# ?????????????#"""#??????????????? | | ?####?????????????#####??????????????? | | | | | | | | | | | | | | | | | | | | | | | | | | | | | | | +----------------------------------------------------+ Best States ------------- Heat Dissipation 28 Energy Generation 14 Energy Capacity 265 Matter Stores 300 Matter Capacity 300 Sight Range 16 Terrain Scan Density 10 Utility Shielding 33 Evasion (%) 55 Recoil Reduction 1 Item Schematics ----------------- None Robot Schematics ------------------ None Fabricated ------------ Nothing Alien Tech Used ----------------- None Achievements -------------- None Challenges ------------ None Game ------ Seed SystemGreatPit Manual? 0 Play Time 00:19:30 Cumulative 21.7 hours Start 2024.03.02 @ 16:30:55 End 2024.03.02 @ 16:51:16 Sessions 1 Manual Loads 0 Difficulty Rogue Special Mode None Game No. 29 Rogue 29 Adventurer 0 Explorer 0 Win Type - Total 0 Types 0/0/0/0/0/0/0/0/0 Lore% 9 Gallery% 19 Achievement% 15 Wizard Run 0 Options --------- Layout 1 ASCII 0 Keyboard 1 Movement Vi Keybinds 0 Fullscreen 2 Font 24/Smallcaps Map View 50x35 Zoom Use 0% Tactical HUD 1 Map Filters NONE Filters NONE Steam 1 RUN: 8278ab0c-62bc-4145-9855-acb2de74c2e9